bitfinex/quotes_BTCUSD_20241128
["timestamp","ask_amount","ask_price","bid_price","bid_amount"]
[1732765825882,0.104697,95513.0,95512.0,0.28184609]
[1732765826550,0.104698,95512.0,95511.0,0.007]
[1732765826780,0.001,95516.0,95513.0,0.104696]
[1732765827041,0.0008574,95517.0,95514.0,0.104696]
[1732765827264,0.0008574,95517.0,95512.0,0.111698]
[1732765827265,0.001,95515.0,95512.0,0.111698]
[1732765827496,0.0008574,95517.0,95514.0,0.104696]
[1732765827723,0.0008574,95517.0,95516.0,0.104694]
[1732765829778,0.1055504,95517.0,95514.0,0.10284521]
[1732765830005,0.1055504,95517.0,95512.0,0.007]
[1732765830006,0.104697,95513.0,95512.0,0.007]
[1732765830466,0.104694,95516.0,95512.0,0.28196985]
[1732765830680,0.0008574,95517.0,95516.0,0.007]
[1732765830917,0.1065504,95517.0,95516.0,0.007]
[1732765831132,0.104694,95516.0,95515.0,0.14099753]
[1732765831594,0.104695,95515.0,95514.0,0.18799268]
[1732765831809,0.209392,95515.0,95513.0,0.23497463]
[1732765832041,0.104697,95513.0,95512.0,0.23497463]
[1732765832253,0.209405,95509.0,95506.0,0.001715]
[1732765832470,0.104704,95507.0,95506.0,0.001715]
[1732765832941,0.10793494,95507.0,95506.0,0.001715]
[1732765834537,0.10893494,95507.0,95506.0,0.006715]
[1732765834922,0.1231099,95507.0,95506.0,0.006715]
[1732765835505,0.1221099,95507.0,95506.0,0.001715]
[1732765835720,0.23495511,95507.0,95506.0,0.001715]
[1732765835936,0.25895511,95507.0,95506.0,0.006715]
[1732765836616,0.40895511,95507.0,95506.0,0.006715]
[1732765836874,0.40895511,95507.0,95506.0,0.005715]
[1732765837357,0.96275511,95507.0,95506.0,0.005715]
[1732765837575,0.96275511,95507.0,95506.0,1e-06]
[1732765837805,0.96275511,95507.0,95478.0,0.18800032]
[1732765837806,0.104731,95482.0,95481.0,0.09399586]
[1732765838274,0.00317211,95482.0,95480.0,0.09390958]
[1732765838538,0.104731,95482.0,95481.0,0.09390491]
[1732765838771,0.01,95486.0,95479.0,0.09390769]
[1732765838999,0.104735,95479.0,95478.0,0.09390769]
[1732765839236,0.001,95482.0,95476.0,0.09390769]
[1732765839469,0.001,95482.0,95473.0,0.1409933]
[1732765839470,0.104738,95476.0,95475.0,0.09390769]
[1732765839929,0.10790711,95476.0,95475.0,0.09390769]
[1732765840153,0.10790711,95476.0,95474.0,0.09386608]
[1732765840370,0.104739,95475.0,95474.0,0.09386608]
[1732765840591,0.10474,95474.0,95473.0,0.09386608]
[1732765841045,0.1079081,95474.0,95473.0,0.09386608]
[1732765841292,0.104741,95473.0,95472.0,0.09386608]
[1732765841536,0.104742,95472.0,95471.0,0.1409933]
[1732765841769,0.2126526,95473.0,95471.0,0.14069014]
[1732765842028,0.0031671,95472.0,95470.0,0.14069014]
[1732765842241,0.0031671,95472.0,95471.0,0.10284521]
[1732765842461,0.01,95497.0,95467.0,0.209496]
[1732765842693,0.001,95474.0,95468.0,0.104747]
[1732765842935,0.001,95474.0,95467.0,0.38481506]
[1732765843174,0.00314366,95473.0,95470.0,0.104744]
[1732765843415,0.00314316,95472.0,95467.0,0.10284521]
[1732765843653,0.001,95474.0,95467.0,0.10284521]
[1732765843654,0.001,95474.0,95469.0,0.104745]
[1732765844149,0.00314366,95473.0,95468.0,0.104746]
[1732765844388,0.00314366,95473.0,95467.0,0.20759321]
[1732765844639,0.104742,95472.0,95471.0,0.23434807]
[1732765844876,0.10788516,95472.0,95471.0,0.23434807]
[1732765845104,0.00314316,95472.0,95469.0,0.23434807]
[1732765845324,0.00314316,95472.0,95467.0,0.106462]
[1732765845325,0.00314316,95472.0,95471.0,0.23434807]
[1732765845534,0.002,95473.0,95471.0,0.23434807]
[1732765845748,0.20947,95479.0,95471.0,0.23434807]
[1732765845749,0.10474,95475.0,95471.0,0.23434807]
[1732765845969,0.20947,95479.0,95471.0,0.23434807]
[1732765845970,0.00314316,95472.0,95471.0,0.23434807]
[1732765846198,0.001,95472.0,95470.0,0.23434807]
[1732765847135,0.105743,95472.0,95470.0,0.23434807]
[1732765847387,0.105742,95472.0,95471.0,0.14055731]
[1732765847628,0.104744,95470.0,95469.0,0.09371175]
[1732765847845,0.00314621,95471.0,95467.0,0.14227231]
[1732765847846,0.104747,95468.0,95467.0,0.09542675]
[1732765848054,0.104747,95468.0,95467.0,0.001715]
[1732765848286,0.10789171,95468.0,95467.0,0.001715]
[1732765849198,0.10889171,95468.0,95467.0,0.001715]
[1732765852182,0.09893171,95468.0,95467.0,0.001715]
[1732765854303,0.09793171,95468.0,95467.0,0.001715]
[1732765854524,0.09893171,95468.0,95467.0,0.001715]
[1732765855219,0.00414471,95468.0,95467.0,0.001715]
[1732765855489,0.001,95468.0,95467.0,0.001715]
[1732765855734,0.22361854,95473.0,95467.0,0.001715]
[1732765855961,0.10788391,95468.0,95467.0,0.001715]
[1732765856198,0.105747,95468.0,95467.0,0.001715]
[1732765856422,0.10888391,95468.0,95467.0,0.001715]
[1732765856887,0.00413691,95468.0,95467.0,0.001715]
[1732765857617,0.00313691,95468.0,95467.0,0.001715]
[1732765857846,0.01413454,95473.0,95467.0,0.001715]
[1732765858130,0.00314136,95468.0,95467.0,0.109463]
[1732765858383,0.001,95468.0,95467.0,0.24989084]
[1732765858595,0.001,95468.0,95467.0,0.36230821]
[1732765859028,0.0008576,95499.0,95483.0,0.209459]
[1732765859239,0.0008576,95499.0,95496.0,0.1983006]
[1732765859459,0.0008576,95499.0,95497.0,0.104714]
[1732765860138,0.0008576,95499.0,95496.0,0.0935856]
[1732765860139,0.104715,95497.0,95496.0,0.0935856]
[1732765860344,0.104715,95497.0,95491.0,0.18717121]
[1732765860345,0.0008576,95499.0,95495.0,0.0935856]
[1732765860560,0.00315588,95497.0,95496.0,0.104716]
[1732765860815,0.0008576,95499.0,95498.0,0.104714]
[1732765861502,0.0008576,95499.0,95498.0,0.20755921]
[1732765861739,0.0018576,95499.0,95498.0,0.20755921]
[1732765861970,0.0008576,95499.0,95498.0,0.20755921]
[1732765862699,0.0018576,95499.0,95498.0,0.21055921]
[1732765863854,0.0008576,95499.0,95498.0,0.20755921]
[1732765864319,0.0018576,95499.0,95498.0,0.21155921]
[1732765867252,0.1065706,95499.0,95498.0,0.004]
[1732765867503,0.1065706,95499.0,95498.0,0.19115592]
[1732765867719,0.00506377,95499.0,95498.0,0.108714]
[1732765867938,0.0018576,95499.0,95498.0,0.108714]
[1732765868155,0.0018576,95499.0,95498.0,0.20229237]
[1732765868387,0.0018576,95499.0,95498.0,0.108714]
[1732765868815,0.0018576,95499.0,95498.0,0.20230297]
[1732765869033,0.0018576,95499.0,95498.0,0.21155921]
[1732765869252,0.0018576,95499.0,95498.0,0.44553165]
[1732765869472,0.0018576,95499.0,95498.0,0.21155921]
[1732765871960,0.0018576,95499.0,95498.0,0.108714]
[1732765872394,0.0018576,95499.0,95498.0,0.29590519]
[1732765872616,0.0018576,95499.0,95498.0,0.21155921]
[1732765873248,0.0018576,95499.0,95498.0,0.44556023]
[1732765873505,0.0018576,95499.0,95498.0,0.44556025]
[1732765873919,0.0018576,95499.0,95498.0,0.44555976]
[1732765874378,0.0018576,95499.0,95498.0,0.44559239]
[1732765874617,0.0018576,95499.0,95498.0,0.21155921]
[1732765879678,0.0018576,95499.0,95498.0,0.21155921]
[1732765882201,0.0018576,95499.0,95498.0,0.22572007]
[1732765882846,0.0018576,95499.0,95498.0,0.37572007]
[1732765886544,0.0018576,95499.0,95498.0,0.65640704]
[1732765886774,0.0018576,95499.0,95498.0,0.37572007]
[1732765889053,0.0018576,95499.0,95498.0,0.258714]
[1732765892567,0.0018576,95499.0,95498.0,0.49269524]
[1732765892819,0.0018576,95499.0,95498.0,0.258714]
[1732765893038,0.0018576,95499.0,95498.0,0.49269695]
[1732765893258,0.0018576,95499.0,95498.0,0.258714]
[1732765893469,0.0018576,95499.0,95498.0,0.49269695]
[1732765893685,0.0018576,95499.0,95498.0,0.258714]
[1732765894757,0.0018576,95499.0,95498.0,0.49275609]
[1732765895224,0.0018576,95499.0,95498.0,0.258714]
[1732765898302,0.0018576,95499.0,95498.0,0.539605]
[1732765898523,0.0018576,95499.0,95498.0,0.5398507]
[1732765899163,0.0018576,95499.0,95498.0,0.258714]
[1732765900865,0.0018576,95499.0,95498.0,0.39017407]
[1732765901316,0.0018576,95499.0,95498.0,0.108714]
[1732765901772,0.0018576,95499.0,95498.0,0.004]
[1732765902426,0.00506617,95499.0,95498.0,0.108714]
[1732765902655,0.0018576,95499.0,95498.0,0.39051682]
[1732765902923,0.00506617,95499.0,95498.0,0.39051682]
[1732765903174,0.0018576,95499.0,95498.0,0.39051682]
[1732765903393,0.0018576,95499.0,95498.0,0.108714]
[1732765904363,0.0018576,95499.0,95498.0,0.004]
[1732765904819,0.00506617,95499.0,95498.0,0.004]
[1732765905051,0.0018576,95499.0,95498.0,0.004]
[1732765905299,0.00506617,95499.0,95498.0,0.004]
[1732765905517,0.0018576,95499.0,95498.0,0.108714]
[1732765905747,0.00506617,95499.0,95498.0,0.108714]
[1732765906221,0.00506617,95499.0,95498.0,0.004]
[1732765906222,0.10977917,95499.0,95498.0,0.004]
[1732765906468,0.0018576,95499.0,95498.0,0.004]
[1732765906715,0.00506617,95499.0,95498.0,0.004]
[1732765909677,0.10977917,95499.0,95498.0,0.004]
[1732765909902,0.10977917,95499.0,95498.0,0.28620211]
[1732765910124,0.10977917,95499.0,95498.0,0.004]
[1732765910585,0.00506617,95499.0,95498.0,0.004]
[1732765910832,0.10977917,95499.0,95498.0,0.004]
[1732765911052,0.1065706,95499.0,95498.0,0.004]
[1732765911282,0.00505953,95499.0,95498.0,0.004]
[1732765911534,0.00505953,95499.0,95498.0,0.10684521]
[1732765911775,0.0018576,95499.0,95498.0,0.36276592]
[1732765912081,0.0018576,95499.0,95498.0,0.36155921]
[1732765912450,0.0018576,95499.0,95498.0,0.35755921]
[1732765912451,0.0008576,95499.0,95498.0,0.35755921]
[1732765912684,0.0018576,95499.0,95498.0,0.36155921]
[1732765912916,0.0018576,95499.0,95498.0,0.37597678]
[1732765913373,0.0028576,95499.0,95498.0,0.69723322]
[1732765913603,0.0008576,95499.0,95498.0,0.37197678]
[1732765914064,0.0018576,95499.0,95498.0,0.37597678]
[1732765914306,0.0018576,95499.0,95498.0,0.39897678]
[1732765914570,0.0018576,95499.0,95498.0,0.40897678]
[1732765914999,0.00011705,95499.0,95498.0,0.40897678]
[1732765915231,0.00011705,95499.0,95498.0,0.41897678]
[1732765915232,5e-08,95499.0,95498.0,0.41897678]
[1732765915429,5e-08,95499.0,95498.0,0.52347678]
[1732765915657,4e-07,95525.0,95498.0,0.52347678]
[1732765915658,4e-07,95525.0,95516.0,0.104694]
[1732765915883,4e-07,95525.0,95516.0,0.38053921]
[1732765917484,0.0098574,95517.0,95516.0,0.39053921]
[1732765918121,0.0098574,95517.0,95516.0,0.40053921]
[1732765918611,4e-07,95517.0,95516.0,0.40053921]
[1732765918815,4e-07,95517.0,95516.0,0.41486239]
[1732765919927,4e-07,95525.0,95524.0,0.287685]
[1732765920142,4e-07,95525.0,95524.0,0.39053021]
[1732765920366,4e-07,95525.0,95524.0,0.40053021]
[1732765921519,0.0008568,95540.0,95524.0,0.40053021]
[1732765921520,8e-07,95540.0,95539.0,0.297669]
[1732765921743,8e-07,95540.0,95539.0,0.40051421]
[1732765921968,8e-07,95540.0,95539.0,0.71633669]
[1732765922231,8e-07,95540.0,95539.0,0.40051421]
[1732765922465,8e-07,95540.0,95539.0,0.71601556]
[1732765922699,8e-07,95540.0,95539.0,0.71601188]
[1732765922905,8e-07,95540.0,95539.0,0.40051421]
[1732765923760,8e-07,95540.0,95539.0,0.41493588]
[1732765924908,0.0050008,95540.0,95539.0,0.43644884]
[1732765926177,0.0050008,95540.0,95539.0,0.38293588]
[1732765926856,0.0050008,95540.0,95539.0,0.37293588]
[1732765927111,0.0050008,95540.0,95539.0,0.38293588]
[1732765927112,8e-07,95540.0,95539.0,0.38293588]
[1732765927328,0.00461982,95558.0,95539.0,0.38293588]
[1732765927329,0.00461982,95558.0,95554.0,0.254652]
[1732765927580,0.00461982,95558.0,95554.0,0.38049721]
[1732765927803,3.79646686,95555.0,95554.0,0.38049721]
[1732765929092,3.79646686,95555.0,95554.0,0.38149721]
[1732765929326,3.80146686,95555.0,95554.0,0.38149721]
[1732765930424,3.80146686,95555.0,95554.0,0.67562187]
[1732765930633,3.80146686,95555.0,95554.0,0.39704088]
[1732765930634,3.80246686,95555.0,95554.0,0.39704088]
[1732765931091,3.80246686,95555.0,95554.0,0.39504088]
[1732765931092,3.79646686,95555.0,95554.0,0.39504088]
[1732765931362,3.79746686,95555.0,95554.0,0.67538389]
[1732765931590,3.79646686,95555.0,95554.0,0.67438389]
[1732765932038,3.79746686,95555.0,95554.0,0.67538389]
[1732765932261,3.79746686,95555.0,95554.0,0.39604088]
[1732765932678,3.79646686,95555.0,95554.0,0.39504088]
[1732765933789,3.80446686,95555.0,95554.0,0.39604088]
[1732765934330,3.79646686,95555.0,95554.0,0.39504088]
[1732765934562,3.80446686,95555.0,95554.0,0.39604088]
[1732765935441,3.79646686,95555.0,95554.0,0.39504088]
[1732765935660,3.80446686,95555.0,95554.0,0.39604088]
[1732765937216,3.79646686,95555.0,95554.0,0.39504088]
[1732765937665,3.80632376,95555.0,95554.0,0.39604088]
[1732765937919,3.79732376,95555.0,95554.0,0.39504088]
[1732765938127,3.80632376,95555.0,95554.0,0.39604088]
[1732765942354,3.80632376,95555.0,95554.0,0.67538389]
[1732765942825,3.80632376,95555.0,95554.0,0.41604088]
[1732765944460,3.74749024,95555.0,95554.0,0.41604088]
[1732765945115,3.70563024,95555.0,95554.0,0.41604088]
[1732765945359,3.70563024,95555.0,95554.0,0.82926743]
[1732765946427,3.70563024,95555.0,95554.0,0.41604088]
[1732765951643,3.70563024,95555.0,95554.0,0.39604088]
[1732765951853,3.70563024,95555.0,95554.0,0.40604088]
[1732765952966,3.70563024,95555.0,95554.0,0.39604088]
[1732765954341,3.70563024,95555.0,95554.0,0.80793744]
[1732765954633,3.64678955,95555.0,95554.0,0.22304088]
[1732765954876,3.64678955,95555.0,95554.0,0.20849721]
[1732765955107,3.64678955,95555.0,95554.0,0.39497195]
[1732765955548,3.64678955,95555.0,95554.0,0.44175175]
[1732765955987,3.64678955,95555.0,95554.0,0.44174473]
[1732765956227,3.64678955,95555.0,95554.0,0.20849721]
[1732765957341,3.64678955,95555.0,95554.0,0.38375066]
[1732765957795,3.64678955,95555.0,95554.0,0.48840266]
[1732765958006,3.64678955,95555.0,95554.0,0.38375066]
[1732765958242,3.75144055,95555.0,95554.0,0.28090545]
[1732765958468,3.75144055,95555.0,95554.0,0.001]
[1732765958677,3.64678955,95555.0,95554.0,0.001]
[1732765961380,3.64678955,95555.0,95554.0,0.105652]
[1732765961575,3.64678955,95555.0,95554.0,0.001]
[1732765962797,3.64678955,95555.0,95554.0,0.20849721]
[1732765963012,3.64678955,95555.0,95554.0,0.35849721]
[1732765963523,3.64678955,95555.0,95554.0,0.0027136]
[1732765964227,3.64678955,95555.0,95554.0,0.1073656]
[1732765964466,3.64678955,95555.0,95554.0,0.52266297]
[1732765964708,3.64678955,95555.0,95554.0,0.1073656]
[1732765965438,3.64678955,95555.0,95554.0,0.52264708]
[1732765965894,3.64678955,95555.0,95554.0,0.41799508]
[1732765966124,3.75144055,95555.0,95554.0,0.0027136]
[1732765966590,3.64678955,95555.0,95554.0,0.0027136]
[1732765966808,3.75144055,95555.0,95554.0,0.0027136]
[1732765967045,3.64678955,95555.0,95554.0,0.0027136]
[1732765967280,3.75144055,95555.0,95554.0,0.0027136]
[1732765968379,3.75144055,95555.0,95554.0,0.28398014]
[1732765969487,3.75144055,95555.0,95554.0,0.0027136]
[1732765970885,3.64678955,95555.0,95554.0,0.10555881]
[1732765971102,3.64678955,95555.0,95554.0,0.21021081]
[1732765976073,3.75144055,95555.0,95554.0,0.0027136]
[1732765978076,3.76558657,95555.0,95554.0,0.0027136]
[1732765978725,3.75913535,95555.0,95554.0,0.0027136]
[1732765979661,3.88198056,95555.0,95554.0,0.0027136]
[1732765979894,3.90498056,95555.0,95554.0,0.0027136]
[1732765980114,0.01,95535.0,95531.0,0.09370994]
[1732765980355,0.104683,95526.0,95525.0,0.09370994]
[1732765980572,0.104683,95526.0,95510.0,0.28112982]
[1732765980573,0.104684,95525.0,95507.0,0.09370994]
[1732765980829,0.37752921,95525.0,95495.0,0.09370994]
[1732765981058,0.37752921,95525.0,95496.0,0.09370994]
[1732765981272,0.37752921,95525.0,95489.0,0.23427485]
[1732765981273,0.37752921,95525.0,95494.0,0.09370994]
[1732765981513,0.37752921,95525.0,95493.0,0.09374115]
[1732765981743,0.37752921,95525.0,95492.0,0.09374115]
[1732765981965,0.37752921,95525.0,95493.0,0.09374115]
[1732765982673,0.37752921,95525.0,95490.0,0.09374115]
[1732765982905,0.37752921,95525.0,95490.0,0.19846215]
[1732765983125,0.104719,95494.0,95490.0,0.09374115]
[1732765983337,0.01,95515.0,95491.0,0.10284521]
[1732765983550,0.104714,95499.0,95491.0,0.10284521]
[1732765983786,0.209402,95510.0,95491.0,0.10284521]
[1732765983787,0.104712,95500.0,95491.0,0.10284521]
[1732765984024,0.01,95515.0,95491.0,0.10284521]
[1732765984025,0.01427074,95516.0,95492.0,0.00185349]
[1732765984267,0.01427074,95516.0,95515.0,0.104695]
[1732765984488,0.01427074,95516.0,95515.0,0.10284521]
[1732765984944,0.209355,95532.0,95515.0,0.10284521]
[1732765985176,0.01450247,95539.0,95516.0,0.10284521]
[1732765985367,0.104685,95525.0,95516.0,0.10284521]
[1732765987227,0.209352,95533.0,95524.0,0.0017136]
[1732765987461,0.01,95553.0,95524.0,0.0017136]
[1732765987647,0.104679,95530.0,95524.0,0.0017136]
[1732765987896,0.104684,95526.0,95524.0,0.0017136]
[1732765988109,0.104684,95525.0,95524.0,0.0017136]
[1732765989173,0.01,95548.0,95524.0,0.0017136]
[1732765989174,0.20934,95538.0,95524.0,0.0017136]
[1732765989420,0.01,95548.0,95524.0,0.0017136]
[1732765989421,0.104684,95525.0,95524.0,0.0017136]
[1732765989858,0.107684,95525.0,95524.0,0.0017136]
[1732765990077,0.104684,95526.0,95524.0,0.0017136]
[1732765990298,0.209321,95547.0,95524.0,0.0017136]
[1732765990511,0.104684,95525.0,95524.0,0.0057136]
[1732765990722,0.104684,95525.0,95524.0,0.0017136]
[1732765990939,0.104684,95525.0,95524.0,0.0107136]
[1732765991162,0.105684,95525.0,95524.0,0.0107136]
[1732765991403,0.105684,95525.0,95524.0,0.0017136]
[1732765991897,0.104684,95525.0,95524.0,0.0017136]
[1732765993289,0.105684,95525.0,95524.0,0.0107136]
[1732765993518,0.001,95525.0,95524.0,0.0107136]
[1732765993956,0.0147358,95535.0,95524.0,0.0017136]
[1732765994194,0.20936,95529.0,95524.0,0.0017136]
[1732765994424,0.001,95525.0,95524.0,0.0077136]
[1732765994645,0.001,95525.0,95524.0,0.0017136]
[1732765995095,0.002,95525.0,95524.0,0.0107136]
[1732765995315,0.002,95525.0,95524.0,0.1153986]
[1732765996234,0.209342,95538.0,95524.0,0.0017136]
[1732765996451,0.104676,95533.0,95526.0,0.104683]
[1732765996700,0.001,95529.0,95526.0,0.104683]
[1732765996924,0.104677,95532.0,95524.0,0.1063986]
[1732765997144,0.10468,95530.0,95524.0,0.0017136]
[1732765997368,0.001,95525.0,95524.0,0.1153986]
[1732765997589,0.104669,95539.0,95524.0,0.00356635]
[1732765997803,0.104668,95540.0,95527.0,0.209364]
[1732765998037,0.001,95529.0,95528.0,0.20003322]
[1732765998255,0.001,95529.0,95528.0,0.35937895]
[1732765998471,0.001,95529.0,95528.0,0.35752621]
[1732765998684,0.001,95529.0,95528.0,0.63784844]
[1732765998903,0.001,95529.0,95528.0,0.35752621]
[1732765999871,3.63133833,95555.0,95528.0,0.25284521]
[1732766000092,0.104656,95551.0,95547.0,0.0934994]
[1732766000318,3.73598933,95555.0,95548.0,0.0934994]
[1732766000597,3.63133833,95555.0,95548.0,0.0934994]
[1732766000805,3.63133833,95555.0,95549.0,0.10284521]
[1732766001028,3.63133833,95555.0,95554.0,0.104652]
[1732766001251,3.63133833,95555.0,95554.0,0.20749721]
[1732766001933,3.63133833,95555.0,95554.0,0.24309562]
[1732766003048,3.73598933,95555.0,95554.0,0.24309562]
[1732766003276,3.63133833,95555.0,95554.0,0.10284521]
[1732766003499,3.63233833,95555.0,95554.0,0.34774762]
[1732766003724,3.63133833,95555.0,95554.0,0.10284521]
[1732766004156,3.63133833,95555.0,95554.0,0.29884401]
[1732766004157,3.63233833,95555.0,95554.0,0.29884401]
[1732766004613,3.63233833,95555.0,95554.0,0.40349601]
[1732766004832,3.63133833,95555.0,95554.0,0.39449601]
[1732766005244,3.63233833,95555.0,95554.0,0.40349601]
[1732766006366,3.63133833,95555.0,95554.0,0.20749721]
[1732766006842,3.63233833,95555.0,95554.0,0.21649721]
[1732766007052,3.63233833,95555.0,95554.0,0.20749721]
[1732766007262,3.63333833,95555.0,95554.0,0.21649721]
[1732766007484,3.63333833,95555.0,95554.0,0.40349601]
[1732766007700,3.63333833,95555.0,95554.0,0.29884401]
[1732766008119,3.63133833,95555.0,95554.0,0.10284521]
[1732766008314,3.63233833,95555.0,95554.0,0.11184521]
[1732766009237,3.63233833,95555.0,95554.0,0.25210887]
[1732766009952,3.63233833,95555.0,95554.0,0.35676087]
[1732766011259,3.63233833,95555.0,95554.0,0.21649721]
[1732766011467,3.63233833,95555.0,95554.0,0.35676087]
[1732766011689,3.63233833,95555.0,95554.0,0.21649721]
[1732766011907,3.63233833,95555.0,95554.0,0.40350643]
[1732766012319,3.63233833,95555.0,95554.0,0.21649721]
[1732766015872,3.63233833,95555.0,95554.0,0.36649721]
[1732766016305,3.63233833,95555.0,95554.0,0.64681457]
[1732766016513,3.63233833,95555.0,95554.0,0.36649721]
[1732766016725,3.63133833,95555.0,95554.0,0.63778148]
[1732766016935,3.63233833,95555.0,95554.0,0.64678148]
[1732766017143,3.63233833,95555.0,95554.0,0.36649721]
[1732766017352,3.63233833,95555.0,95554.0,0.38949721]
[1732766017561,3.63333833,95555.0,95554.0,0.39849721]
[1732766018185,3.63333833,95555.0,95554.0,0.40849721]
[1732766019237,3.63133833,95555.0,95554.0,0.39049721]
[1732766019647,3.63433833,95555.0,95554.0,0.39149721]
[1732766020708,3.63433833,95555.0,95554.0,0.8048588]
[1732766021356,3.63433833,95555.0,95554.0,0.40149721]
[1732766021559,3.63433833,95555.0,95554.0,0.81472436]
[1732766022217,0.0038569,95555.0,95554.0,0.81472436]
[1732766023114,0.0038569,95555.0,95554.0,0.40149721]
[1732766024384,0.0008569,95555.0,95554.0,0.40049721]
[1732766024596,0.0008569,95555.0,95554.0,0.40149721]
[1732766025292,0.0008569,95555.0,95554.0,0.83526012]
[1732766027751,9e-07,95555.0,95554.0,0.42249386]
[1732766028866,7.2e-07,95558.0,95557.0,0.297649]
[1732766029082,7.2e-07,95558.0,95557.0,0.40049421]
[1732766029581,7.2e-07,95558.0,95557.0,0.50499421]
[1732766029777,7.2e-07,95569.0,95568.0,0.297637]
[1732766030010,7.2e-07,95569.0,95568.0,0.40048221]
[1732766031155,7.2e-07,95569.0,95568.0,0.40148221]
[1732766034037,7.2e-07,95569.0,95568.0,0.41567221]
[1732766034905,7.2e-07,95569.0,95568.0,0.40567221]
[1732766035142,7.2e-07,95569.0,95568.0,0.41567221]
[1732766035412,7.2e-07,95569.0,95568.0,0.40567221]
[1732766035631,7.2e-07,95569.0,95568.0,0.41567221]
[1732766038152,7.2e-07,95569.0,95568.0,0.40567221]
[1732766041739,7.2e-07,95569.0,95568.0,0.39567221]
[1732766041958,7.2e-07,95569.0,95568.0,0.40567221]
[1732766042169,7.2e-07,95569.0,95568.0,0.39567221]
[1732766042396,7.2e-07,95569.0,95568.0,0.40567221]
[1732766042819,7.2e-07,95569.0,95568.0,0.39567221]
[1732766043488,7.2e-07,95569.0,95568.0,0.40567221]
[1732766044128,7.2e-07,95569.0,95568.0,0.41567221]
[1732766044585,0.00085802,95569.0,95568.0,0.41567221]
[1732766050562,0.00085802,95569.0,95568.0,0.73033568]
[1732766050978,0.00085802,95569.0,95568.0,0.41567221]
[1732766051320,8.735e-05,95569.0,95568.0,0.41567221]
[1732766057234,8.735e-05,95569.0,95568.0,0.41738661]
[1732766061175,1.509e-05,95573.0,95572.0,0.124633]
[1732766061400,1.509e-05,95573.0,95572.0,0.37932956]
[1732766061614,1.509e-05,95573.0,95572.0,0.40047821]
[1732766062747,1.509e-05,95573.0,95572.0,0.40147821]
[1732766065541,1.509e-05,95573.0,95572.0,0.90807492]
[1732766066058,1.509e-05,95573.0,95572.0,0.40147821]
[1732766066260,0.0008568,95581.0,95580.0,0.02]
[1732766066473,0.0008568,95581.0,95580.0,0.40188798]
[1732766066684,0.0008568,95581.0,95580.0,0.40046921]
[1732766067958,0.0008568,95581.0,95580.0,0.40146921]
[1732766070640,0.0008568,95581.0,95580.0,0.40146921]
[1732766071213,0.0008568,95581.0,95580.0,0.41603016]
[1732766071981,0.0008568,95581.0,95580.0,0.37303016]
[1732766072203,0.0008568,95581.0,95580.0,0.20846921]
[1732766073250,0.0008568,95581.0,95580.0,0.20746921]
[1732766073492,0.0008568,95581.0,95580.0,0.21646921]
[1732766073918,0.1054798,95581.0,95580.0,0.42482199]
[1732766074123,0.1054798,95581.0,95580.0,0.25264562]
[1732766074325,0.11070405,95581.0,95580.0,0.018]
[1732766074531,0.00608105,95581.0,95580.0,0.018]
[1732766074783,0.00608105,95581.0,95580.0,0.20571021]
[1732766074999,0.11070405,95581.0,95580.0,0.018]
[1732766075261,0.1054798,95581.0,95580.0,0.018]
[1732766075463,0.11068186,95581.0,95580.0,0.018]
[1732766075665,0.11068186,95581.0,95574.0,0.0938274]
[1732766075666,0.104629,95575.0,95574.0,0.0938274]
[1732766075872,0.104629,95575.0,95572.0,0.14072353]
[1732766075873,0.104632,95573.0,95572.0,0.0938274]
[1732766076095,0.1054798,95581.0,95580.0,0.005]
[1732766076296,0.104636,95569.0,95568.0,0.0955418]
[1732766076497,0.104636,95569.0,95568.0,0.14243793]
[1732766076703,0.209258,95576.0,95568.0,0.0017144]
[1732766076835,0.10463,95574.0,95573.0,0.09378103]
[1732766077056,0.209254,95578.0,95572.0,0.004]
[1732766077275,0.00517416,95574.0,95573.0,0.09374201]
[1732766077487,0.0008568,95581.0,95573.0,0.09374201]
[1732766077488,0.104629,95576.0,95573.0,0.14067155]
[1732766077712,0.104632,95573.0,95572.0,0.10284521]
[1732766078122,0.10979224,95573.0,95572.0,0.10284521]
[1732766078349,0.10979224,95573.0,95572.0,0.14053245]
[1732766078555,0.10979224,95573.0,95568.0,0.0017144]
[1732766078556,0.104634,95571.0,95570.0,0.09369945]
[1732766078765,0.00516024,95573.0,95572.0,0.004]
[1732766078971,0.104632,95573.0,95572.0,0.004]
[1732766079387,0.104632,95573.0,95572.0,0.007]
[1732766080641,0.104632,95573.0,95572.0,0.0087144]
[1732766081985,0.104632,95573.0,95572.0,0.0127144]
[1732766082195,0.11941302,95573.0,95572.0,0.0127144]
[1732766082408,0.11913575,95573.0,95572.0,0.0127144]
[1732766088279,0.39198096,95573.0,95572.0,0.0127144]
[1732766088509,0.39198096,95573.0,95568.0,0.0017144]
[1732766088510,0.124636,95569.0,95568.0,0.0017144]
[1732766088775,0.22748121,95569.0,95568.0,0.0017144]
[1732766089199,0.37748121,95569.0,95568.0,0.0017144]
[1732766090074,0.38048121,95569.0,95568.0,0.0017144]
[1732766090707,0.40117129,95569.0,95568.0,0.0017144]
[1732766091812,0.40617129,95569.0,95568.0,0.0017144]
[1732766092220,0.41137166,95569.0,95568.0,0.0017144]
[1732766093920,0.40617129,95569.0,95568.0,0.0017144]
[1732766094351,0.39617129,95569.0,95568.0,0.0017144]
[1732766094558,0.262636,95569.0,95568.0,0.0017144]
[1732766094768,0.272636,95569.0,95568.0,0.0017144]
[1732766095432,0.104636,95569.0,95568.0,0.0017144]
[1732766095650,0.115636,95569.0,95568.0,0.0027144]
[1732766095872,0.115636,95569.0,95568.0,0.0017144]
[1732766096371,0.114636,95569.0,95568.0,0.0017144]
[1732766096586,0.112636,95569.0,95568.0,0.0017144]
[1732766097843,0.117636,95569.0,95568.0,0.0017144]
[1732766098296,0.113636,95569.0,95568.0,0.0017144]
[1732766098509,0.108636,95569.0,95568.0,0.0017144]
[1732766098711,0.104636,95569.0,95568.0,0.0017144]
[1732766098933,0.104636,95569.0,95568.0,0.0027144]
[1732766099146,0.105636,95569.0,95568.0,0.0027144]
[1732766099644,0.104636,95569.0,95568.0,0.0027144]
[1732766100059,0.105636,95569.0,95568.0,0.0027144]
[1732766101348,0.104636,95569.0,95568.0,0.0027144]
[1732766101568,0.22490322,95573.0,95568.0,0.0027144]
[1732766101569,0.01563822,95573.0,95568.0,0.10555961]
[1732766101812,0.01563822,95573.0,95568.0,0.0027144]
[1732766102020,0.104634,95572.0,95568.0,0.0027144]
[1732766102251,0.01563822,95573.0,95569.0,0.10284521]
[1732766102899,0.104635,95570.0,95569.0,0.10284521]